[Event "Early-Titled-Tuesday-Blitz-January-23-2024"]
[Site "Chess.com"]
[Date "2024.01.23"]
[Round "1"]
[White "arenal72"]
[Black "Chesstiger64"]
[Result "1-0"]
[WhiteElo "2602"]
[BlackElo "2242"]
[TimeControl "180+1"]
[EndTime "8:07:58 PST"]
[Termination "arenal72 won by resignation"]

1. Nf3 {[%clk 0:03:00.9]} 1... d5 {[%clk 0:02:59.5]} 2. g3 {[%clk 0:03:00]} 2...
c6 {[%clk 0:02:59.8]} 3. Bg2 {[%clk 0:02:59.3]} 3... Bf5 {[%clk 0:03:00.4]} 4.
O-O {[%clk 0:02:58.8]} 4... Nd7 {[%clk 0:03:01]} 5. d3 {[%clk 0:02:53.7]} 5...
e6 {[%clk 0:03:00.7]} 6. c4 {[%clk 0:02:52.3]} 6... h6 {[%clk 0:03:00.1]} 7. Nc3
{[%clk 0:02:50.1]} 7... Ngf6 {[%clk 0:02:59.9]} 8. Be3 {[%clk 0:02:49.3]} 8...
Bb4 {[%clk 0:02:55.9]} 9. Qb3 {[%clk 0:02:42.6]} 9... Qe7 {[%clk 0:02:47.3]} 10.
a3 {[%clk 0:02:42.1]} 10... Bxc3 {[%clk 0:02:45.4]} 11. bxc3 {[%clk 0:02:37.5]}
11... Nc5 {[%clk 0:02:36.6]} 12. Bxc5 {[%clk 0:02:28.3]} 12... Qxc5 {[%clk
0:02:37.5]} 13. Qxb7 {[%clk 0:02:26.2]} 13... O-O {[%clk 0:02:38.1]} 14. Qb4
{[%clk 0:02:22.9]} 14... Nd7 {[%clk 0:02:31.9]} 15. Nd4 {[%clk 0:02:15.7]} 15...
Bg6 {[%clk 0:02:30.4]} 16. Qxc5 {[%clk 0:02:08]} 16... Nxc5 {[%clk 0:02:28.8]}
17. Nxc6 {[%clk 0:02:08.6]} 17... Nb3 {[%clk 0:02:09.7]} 18. Ra2 {[%clk
0:01:58]} 18... dxc4 {[%clk 0:01:43.1]} 19. Ne7+ {[%clk 0:01:56.8]} 19... Kh7
{[%clk 0:01:43.2]} 20. Nxg6 {[%clk 0:01:56.3]} 20... Kxg6 {[%clk 0:01:43.6]} 21.
Bxa8 {[%clk 0:01:54]} 21... Rxa8 {[%clk 0:01:43.3]} 22. dxc4 {[%clk 0:01:54]}
22... Na5 {[%clk 0:01:43.5]} 23. Rb1 {[%clk 0:01:49.5]} 23... Nxc4 {[%clk
0:01:42.3]} 24. Rb4 {[%clk 0:01:49.9]} 24... Rc8 {[%clk 0:01:41.7]} 25. Rb7
{[%clk 0:01:46.7]} 25... a5 {[%clk 0:01:40.9]} 26. a4 {[%clk 0:01:43.6]} 26...
h5 {[%clk 0:01:40.2]} 27. Rb5 {[%clk 0:01:40.7]} 27... Kf6 {[%clk 0:01:33.6]}
28. Rxh5 {[%clk 0:01:35.3]} 28... Ne5 {[%clk 0:01:32.4]} 29. f4 {[%clk
0:01:29.1]} 29... Ng4 {[%clk 0:01:28.4]} 30. Ra3 {[%clk 0:01:15.8]} 30... Ra8
{[%clk 0:01:18.1]} 31. c4 {[%clk 0:01:00]} 31... Ke7 {[%clk 0:01:04.2]} 32. Rb5
{[%clk 0:00:55.8]} 32... f5 {[%clk 0:00:52.1]} 33. c5 {[%clk 0:00:52.8]} 33...
Nf6 {[%clk 0:00:47.7]} 34. Rb7+ {[%clk 0:00:47.3]} 34... Kf8 {[%clk 0:00:45]}
35. c6 {[%clk 0:00:47.5]} 35... Rc8 {[%clk 0:00:42]} 36. c7 {[%clk 0:00:42.4]}
36... Ke7 {[%clk 0:00:42]} 37. Rc3 {[%clk 0:00:35.3]} 37... Nd5 {[%clk
0:00:41.7]} 38. Rc5 {[%clk 0:00:34.5]} 38... Kd6 {[%clk 0:00:40.3]} 39. Rxa5
{[%clk 0:00:33.5]} 39... Nxc7 {[%clk 0:00:40.4]} 40. Raa7 {[%clk 0:00:25]} 40...
Nd5 {[%clk 0:00:39.7]} 41. Rxg7 {[%clk 0:00:24]} 41... Kc5 {[%clk 0:00:39.4]}
42. a5 {[%clk 0:00:23.1]} 42... Kd4 {[%clk 0:00:39.7]} 43. Kf2 {[%clk
0:00:22.6]} 43... Ne3 {[%clk 0:00:38.3]} 44. Rab7 {[%clk 0:00:19.8]} 44... Ng4+
{[%clk 0:00:36.3]} 45. Kg2 {[%clk 0:00:19.8]} 45... Rc2 {[%clk 0:00:35.5]} 46.
Rxg4 {[%clk 0:00:17.3]} 46... fxg4 {[%clk 0:00:35.5]} 47. Kf2 {[%clk 0:00:18.2]}
47... Ra2 {[%clk 0:00:34.2]} 48. Rg7 {[%clk 0:00:17.6]} 48... Rxa5 {[%clk
0:00:33]} 49. Rxg4 {[%clk 0:00:17.7]} 49... Ke4 {[%clk 0:00:32.6]} 50. h4 {[%clk
0:00:15.9]} 50... Ra8 {[%clk 0:00:30.6]} 51. Rg5 {[%clk 0:00:15.8]} 51... Rh8
{[%clk 0:00:28.2]} 52. Re5+ {[%clk 0:00:15.6]} 52... Kd4 {[%clk 0:00:27.4]} 53.
e3+ {[%clk 0:00:15.9]} 53... Kd3 {[%clk 0:00:27.2]} 54. Rxe6 {[%clk 0:00:16.5]}
54... Ra8 {[%clk 0:00:27.2]} 55. Kf3 {[%clk 0:00:16.9]} 55... Ra1 {[%clk
0:00:26.7]} 56. Rd6+ {[%clk 0:00:17.3]} 56... Kc4 {[%clk 0:00:26.1]} 57. h5
{[%clk 0:00:18.2]} 57... Kc5 {[%clk 0:00:26.4]} 58. Rd2 {[%clk 0:00:18]} 58...
Rh1 {[%clk 0:00:25.5]} 59. Kg4 {[%clk 0:00:17.8]} 59... Kc6 {[%clk 0:00:25.1]}
60. Kg5 {[%clk 0:00:18.1]} 60... Kc7 {[%clk 0:00:25.1]} 61. g4 {[%clk
0:00:18.7]} 61... Kc6 {[%clk 0:00:25.6]} 62. Kg6 {[%clk 0:00:19.1]} 62... Kc5
{[%clk 0:00:26.3]} 63. g5 {[%clk 0:00:19.6]} 63... Kc4 {[%clk 0:00:27]} 64. h6
{[%clk 0:00:20.2]} 64... Kc3 {[%clk 0:00:27.9]} 65. Rd8 {[%clk 0:00:20.5]} 1-0

[Event "Early-Titled-Tuesday-Blitz-January-23-2024"]
[Site "Chess.com"]
[Date "2024.01.23"]
[Round "1"]
[White "ErikRonka"]
[Black "MatthewG-p4p"]
[Result "0-1"]
[WhiteElo "2486"]
[BlackElo "2886"]
[TimeControl "180+1"]
[EndTime "8:08:04 PST"]
[Termination "MatthewG-p4p won by checkmate"]

1. e4 {[%clk 0:03:00.9]} 1... c5 {[%clk 0:02:51.7]} 2. Nf3 {[%clk 0:03:00.6]}
2... g6 {[%clk 0:02:51.8]} 3. d4 {[%clk 0:03:00.9]} 3... cxd4 {[%clk 0:02:52.7]}
4. Nxd4 {[%clk 0:03:01.8]} 4... Bg7 {[%clk 0:02:53.2]} 5. Nc3 {[%clk 0:03:02.4]}
5... Nc6 {[%clk 0:02:53.8]} 6. Be3 {[%clk 0:03:02.8]} 6... Nf6 {[%clk
0:02:53.8]} 7. Bc4 {[%clk 0:03:03.4]} 7... O-O {[%clk 0:02:53.9]} 8. Bb3 {[%clk
0:03:04]} 8... Re8 {[%clk 0:02:54.2]} 9. h4 {[%clk 0:03:02.8]} 9... d5 {[%clk
0:02:30.1]} 10. Nxc6 {[%clk 0:02:56.8]} 10... bxc6 {[%clk 0:02:29.4]} 11. exd5
{[%clk 0:02:57.3]} 11... cxd5 {[%clk 0:02:22.1]} 12. Nxd5 {[%clk 0:02:54.9]}
12... Nxd5 {[%clk 0:01:54.3]} 13. Qxd5 {[%clk 0:02:54.1]} 13... Qxd5 {[%clk
0:01:52.4]} 14. Bxd5 {[%clk 0:02:53.7]} 14... Rb8 {[%clk 0:01:53.3]} 15. Bc1
{[%clk 0:02:45.8]} 15... Ba6 {[%clk 0:01:32.1]} 16. Bb3 {[%clk 0:02:06.4]} 16...
Rbc8 {[%clk 0:01:31.5]} 17. Rh3 {[%clk 0:01:37.4]} 17... Red8 {[%clk 0:01:07.7]}
18. c3 {[%clk 0:01:28.4]} 18... Bd3 {[%clk 0:01:07.3]} 19. Bd2 {[%clk
0:01:18.5]} 19... a5 {[%clk 0:01:06.6]} 20. O-O-O {[%clk 0:01:03.7]} 20... Bf5
{[%clk 0:01:06.3]} 21. Rhh1 {[%clk 0:00:59.9]} 21... h5 {[%clk 0:01:05.5]} 22.
Bc2 {[%clk 0:00:57.4]} 22... Be6 {[%clk 0:01:05]} 23. Kb1 {[%clk 0:00:53.1]}
23... Bf6 {[%clk 0:00:59.1]} 24. Bg5 {[%clk 0:00:46.9]} 24... Kg7 {[%clk
0:00:46.6]} 25. Bxf6+ {[%clk 0:00:46.6]} 25... Kxf6 {[%clk 0:00:47.5]} 26. Rxd8
{[%clk 0:00:37.4]} 26... Rxd8 {[%clk 0:00:48.4]} 27. Rd1 {[%clk 0:00:37.5]}
27... Rc8 {[%clk 0:00:48.8]} 28. Rd4 {[%clk 0:00:34.5]} 28... Rc5 {[%clk
0:00:48.6]} 29. Bb3 {[%clk 0:00:28.2]} 29... Bf5+ {[%clk 0:00:48.4]} 30. Kc1
{[%clk 0:00:27.2]} 30... Re5 {[%clk 0:00:43.1]} 31. Kd2 {[%clk 0:00:25.4]} 31...
e6 {[%clk 0:00:37.9]} 32. f3 {[%clk 0:00:24]} 32... Rb5 {[%clk 0:00:36.9]} 33.
g4 {[%clk 0:00:13.3]} 33... hxg4 {[%clk 0:00:32.6]} 34. fxg4 {[%clk 0:00:14.2]}
34... e5 {[%clk 0:00:33.2]} 35. Rc4 {[%clk 0:00:07.8]} 35... Rd5+ {[%clk
0:00:12]} 36. Ke1 {[%clk 0:00:07.9]} 36... Bd7 {[%clk 0:00:12]} 37. Rc7 {[%clk
0:00:05.4]} 37... Rd6 {[%clk 0:00:12.4]} 38. g5+ {[%clk 0:00:02.4]} 38... Ke7
{[%clk 0:00:11.9]} 39. Ke2 {[%clk 0:00:03.3]} 39... f6 {[%clk 0:00:12.1]} 40.
Ke3 {[%clk 0:00:03.3]} 40... f5 {[%clk 0:00:09.5]} 41. Rc5 {[%clk 0:00:03.9]}
41... e4 {[%clk 0:00:05.8]} 42. Re5+ {[%clk 0:00:04.3]} 42... Kf8 {[%clk
0:00:05.8]} 43. Rxa5 {[%clk 0:00:05.2]} 43... Rd3+ {[%clk 0:00:05.9]} 44. Ke2
{[%clk 0:00:05.4]} 44... Rh3 {[%clk 0:00:05.9]} 45. Ra7 {[%clk 0:00:04.2]} 45...
Bb5+ {[%clk 0:00:05.9]} 46. Kf2 {[%clk 0:00:03.7]} 46... e3+ {[%clk 0:00:06.6]}
47. Kg2 {[%clk 0:00:02.5]} 47... e2 {[%clk 0:00:06.5]} 48. Rf7+ {[%clk
0:00:01.2]} 48... Ke8 {[%clk 0:00:07.1]} 49. Kxh3 {[%clk 0:00:01.3]} 49... e1=Q
{[%clk 0:00:07.5]} 50. Rg7 {[%clk 0:00:01.4]} 50... Bf1+ {[%clk 0:00:07.4]} 51.
Kh2 {[%clk 0:00:01.4]} 51... Qf2+ {[%clk 0:00:08.1]} 52. Kh1 {[%clk 0:00:01.6]}
52... Qg2# {[%clk 0:00:09]} 0-1

[Event "Early-Titled-Tuesday-Blitz-January-23-2024"]
[Site "Chess.com"]
[Date "2024.01.23"]
[Round "1"]
[White "publicaccountcze"]
[Black "SaqoChess_Twitch"]
[Result "0-1"]
[WhiteElo "2317"]
[BlackElo "2636"]
[TimeControl "180+1"]
[EndTime "8:08:08 PST"]
[Termination "SaqoChess_Twitch won by checkmate"]

1. e4 {[%clk 0:02:57.9]} 1... c5 {[%clk 0:02:47.6]} 2. Nc3 {[%clk 0:02:57.2]}
2... d6 {[%clk 0:02:45.8]} 3. f4 {[%clk 0:02:55.6]} 3... Nc6 {[%clk 0:02:44]} 4.
Nf3 {[%clk 0:02:55.4]} 4... g6 {[%clk 0:02:43.8]} 5. Bb5 {[%clk 0:02:55.1]} 5...
Bg7 {[%clk 0:02:42.1]} 6. Bxc6+ {[%clk 0:02:54.5]} 6... bxc6 {[%clk 0:02:41.8]}
7. O-O {[%clk 0:02:54.4]} 7... e6 {[%clk 0:02:42.1]} 8. d3 {[%clk 0:02:54.3]}
8... Ne7 {[%clk 0:02:42.6]} 9. Qe1 {[%clk 0:02:52.8]} 9... O-O {[%clk
0:02:43.2]} 10. Qh4 {[%clk 0:02:17.1]} 10... h6 {[%clk 0:02:31.1]} 11. f5 {[%clk
0:01:27.2]} 11... Nxf5 {[%clk 0:02:14.9]} 12. Qxd8 {[%clk 0:01:12.3]} 12... Rxd8
{[%clk 0:02:15.8]} 13. exf5 {[%clk 0:01:11.8]} 13... exf5 {[%clk 0:02:16.7]} 14.
h4 {[%clk 0:01:06]} 14... a5 {[%clk 0:02:14.5]} 15. a3 {[%clk 0:01:02.9]} 15...
Ba6 {[%clk 0:02:09.8]} 16. Bf4 {[%clk 0:01:01.2]} 16... Rab8 {[%clk 0:02:05.2]}
17. Rab1 {[%clk 0:00:54.5]} 17... Rb7 {[%clk 0:01:57.1]} 18. Na4 {[%clk
0:00:51.2]} 18... c4 {[%clk 0:01:55.8]} 19. d4 {[%clk 0:00:36.9]} 19... c3
{[%clk 0:01:55.8]} 20. Rfe1 {[%clk 0:00:33.5]} 20... cxb2 {[%clk 0:01:56.4]} 21.
Rxb2 {[%clk 0:00:33.4]} 21... Rxb2 {[%clk 0:01:54]} 22. Nxb2 {[%clk 0:00:34.3]}
22... c5 {[%clk 0:01:54.6]} 23. c3 {[%clk 0:00:19.1]} 23... cxd4 {[%clk
0:01:54.7]} 24. cxd4 {[%clk 0:00:20]} 24... Rb8 {[%clk 0:01:53.9]} 25. Na4
{[%clk 0:00:19.9]} 25... Bb5 {[%clk 0:01:51.3]} 26. Nc3 {[%clk 0:00:19.3]} 26...
Bc6 {[%clk 0:01:50.6]} 27. Bxd6 {[%clk 0:00:19.8]} 27... Rd8 {[%clk 0:01:51.3]}
28. Be5 {[%clk 0:00:18.9]} 28... Bf8 {[%clk 0:01:51]} 29. Bf6 {[%clk 0:00:18.3]}
29... Rc8 {[%clk 0:01:50.4]} 30. Ne5 {[%clk 0:00:18.7]} 30... Be8 {[%clk
0:01:43.3]} 31. Nd5 {[%clk 0:00:18.3]} 31... Bxa3 {[%clk 0:01:42.6]} 32. Ne7+
{[%clk 0:00:18.2]} 32... Bxe7 {[%clk 0:01:43]} 33. Bxe7 {[%clk 0:00:19.1]} 33...
a4 {[%clk 0:01:43.6]} 34. Bf6 {[%clk 0:00:19.4]} 34... a3 {[%clk 0:01:43.8]} 35.
Nd3 {[%clk 0:00:19.2]} 35... a2 {[%clk 0:01:43.4]} 36. Kh2 {[%clk 0:00:18.2]}
36... Bc6 {[%clk 0:01:40.8]} 37. d5 {[%clk 0:00:18.3]} 37... Bxd5 {[%clk
0:01:40.3]} 38. Nf4 {[%clk 0:00:17.8]} 38... Be4 {[%clk 0:01:39.2]} 39. Ra1
{[%clk 0:00:14.5]} 39... Bb1 {[%clk 0:01:39.4]} 40. Ne2 {[%clk 0:00:14.8]} 40...
Rc6 {[%clk 0:01:38.6]} 41. Be5 {[%clk 0:00:14.8]} 41... Re6 {[%clk 0:01:38.6]}
42. Nc3 {[%clk 0:00:10.2]} 42... Rxe5 {[%clk 0:01:38.7]} 43. Nxb1 {[%clk
0:00:10.4]} 43... axb1=Q {[%clk 0:01:39.6]} 44. Rxb1 {[%clk 0:00:10.7]} 44...
Re4 {[%clk 0:01:40.3]} 45. g3 {[%clk 0:00:10.4]} 45... h5 {[%clk 0:01:39.9]} 46.
Kh3 {[%clk 0:00:10.1]} 46... Kg7 {[%clk 0:01:40.6]} 47. Rb7 {[%clk 0:00:10.5]}
47... Re3 {[%clk 0:01:41.1]} 48. Kg2 {[%clk 0:00:10.7]} 48... Rd3 {[%clk
0:01:40.9]} 49. Kf2 {[%clk 0:00:11]} 49... Ra3 {[%clk 0:01:41.1]} 50. Rb6 {[%clk
0:00:11.8]} 50... Ra4 {[%clk 0:01:41.1]} 51. Kf3 {[%clk 0:00:12.3]} 51... Rg4
{[%clk 0:01:41.6]} 52. Rc6 {[%clk 0:00:12.2]} 52... Rb4 {[%clk 0:01:40.9]} 53.
Rd6 {[%clk 0:00:12.3]} 53... Rb3+ {[%clk 0:01:41.4]} 54. Kf2 {[%clk 0:00:12]}
54... Rc3 {[%clk 0:01:41.8]} 55. Rb6 {[%clk 0:00:12]} 55... Rc2+ {[%clk
0:01:42]} 56. Kf3 {[%clk 0:00:11.8]} 56... Rc3+ {[%clk 0:01:42.1]} 57. Kf4
{[%clk 0:00:12.5]} 57... Rc4+ {[%clk 0:01:42.4]} 58. Kf3 {[%clk 0:00:12.2]}
58... Rg4 {[%clk 0:01:42.3]} 59. Rb5 {[%clk 0:00:12]} 59... f4 {[%clk
0:01:42.7]} 60. gxf4 {[%clk 0:00:11.2]} 60... Rxh4 {[%clk 0:01:43.4]} 61. Rb6
{[%clk 0:00:10.7]} 61... Rh1 {[%clk 0:01:43.4]} 62. Rb5 {[%clk 0:00:10.1]} 62...
Rf1+ {[%clk 0:01:43.8]} 63. Kg3 {[%clk 0:00:10.4]} 63... Ra1 {[%clk 0:01:44.7]}
64. f5 {[%clk 0:00:10.5]} 64... Ra3+ {[%clk 0:01:45.1]} 65. Kh4 {[%clk
0:00:09.8]} 65... Ra4+ {[%clk 0:01:45.5]} 66. Kh3 {[%clk 0:00:09.9]} 66... Rf4
{[%clk 0:01:43.9]} 67. fxg6 {[%clk 0:00:09.9]} 67... fxg6 {[%clk 0:01:44.8]} 68.
Kg3 {[%clk 0:00:09.6]} 68... Rg4+ {[%clk 0:01:45.2]} 69. Kh3 {[%clk 0:00:09.6]}
69... Ra4 {[%clk 0:01:45.5]} 70. Kg3 {[%clk 0:00:09.7]} 70... Kh6 {[%clk
0:01:46]} 71. Kf3 {[%clk 0:00:09.7]} 71... h4 {[%clk 0:01:43.2]} 72. Rb8 {[%clk
0:00:09.6]} 72... Kh5 {[%clk 0:01:41.6]} 73. Rh8+ {[%clk 0:00:07.9]} 73... Kg5
{[%clk 0:01:42.2]} 74. Rb8 {[%clk 0:00:08.7]} 74... Ra3+ {[%clk 0:01:42.2]} 75.
Kg2 {[%clk 0:00:08.6]} 75... Kh5 {[%clk 0:01:42.6]} 76. Rh8+ {[%clk 0:00:08.3]}
76... Kg4 {[%clk 0:01:42.8]} 77. Rb8 {[%clk 0:00:08.7]} 77... g5 {[%clk
0:01:43.3]} 78. Rb4+ {[%clk 0:00:08.3]} 78... Kh5 {[%clk 0:01:43.8]} 79. Rb5
{[%clk 0:00:08.9]} 79... h3+ {[%clk 0:01:44]} 80. Kh2 {[%clk 0:00:09.3]} 80...
Kh4 {[%clk 0:01:43.8]} 81. Rb4+ {[%clk 0:00:05.4]} 81... g4 {[%clk 0:01:44.1]}
82. Rc4 {[%clk 0:00:06.3]} 82... Ra2+ {[%clk 0:01:43.6]} 83. Kg1 {[%clk
0:00:06.5]} 83... Kg5 {[%clk 0:01:36]} 84. Rd4 {[%clk 0:00:05.4]} 84... g3
{[%clk 0:01:35.4]} 85. Rd3 {[%clk 0:00:03.8]} 85... Ra1+ {[%clk 0:01:34.5]} 86.
Rd1 {[%clk 0:00:03.4]} 86... Rxd1# {[%clk 0:01:35.4]} 0-1

[Event "Early-Titled-Tuesday-Blitz-January-23-2024"]
[Site "Chess.com"]
[Date "2024.01.23"]
[Round "1"]
[White "MikaelyanArman"]
[Black "MIss_MIaMI"]
[Result "1-0"]
[WhiteElo "2839"]
[BlackElo "2454"]
[TimeControl "180+1"]
[EndTime "8:08:09 PST"]
[Termination "MikaelyanArman won by checkmate"]

1. d4 {[%clk 0:03:00.9]} 1... c5 {[%clk 0:02:21.8]} 2. d5 {[%clk 0:02:59.4]}
2... g6 {[%clk 0:02:21.6]} 3. e4 {[%clk 0:02:51.1]} 3... Bg7 {[%clk 0:02:20.3]}
4. Nc3 {[%clk 0:02:49.6]} 4... d6 {[%clk 0:02:20.5]} 5. Nf3 {[%clk 0:02:43.8]}
5... Bg4 {[%clk 0:02:19.9]} 6. Be2 {[%clk 0:02:37.4]} 6... Bxf3 {[%clk
0:02:20.2]} 7. Bxf3 {[%clk 0:02:38.3]} 7... a6 {[%clk 0:02:18.4]} 8. a4 {[%clk
0:02:37.2]} 8... b6 {[%clk 0:02:18.8]} 9. O-O {[%clk 0:02:36.8]} 9... Nf6 {[%clk
0:02:19.4]} 10. Re1 {[%clk 0:02:17.2]} 10... Nbd7 {[%clk 0:02:19.2]} 11. Bf4
{[%clk 0:02:17.4]} 11... O-O {[%clk 0:02:12.9]} 12. Qd2 {[%clk 0:02:12.7]} 12...
Rb8 {[%clk 0:02:09]} 13. Be2 {[%clk 0:02:11.6]} 13... Qc8 {[%clk 0:01:59]} 14.
h3 {[%clk 0:02:11]} 14... Ne8 {[%clk 0:01:59.6]} 15. Bg5 {[%clk 0:02:00.4]}
15... f6 {[%clk 0:01:53.1]} 16. Bf4 {[%clk 0:01:53]} 16... Nc7 {[%clk
0:01:52.7]} 17. Bg4 {[%clk 0:01:47.5]} 17... Rd8 {[%clk 0:01:23.8]} 18. h4
{[%clk 0:01:44]} 18... b5 {[%clk 0:01:18.8]} 19. axb5 {[%clk 0:01:43.8]} 19...
axb5 {[%clk 0:01:19.7]} 20. h5 {[%clk 0:01:38.8]} 20... g5 {[%clk 0:01:19.5]}
21. Bg3 {[%clk 0:01:33.7]} 21... h6 {[%clk 0:01:18.6]} 22. Nd1 {[%clk
0:01:32.3]} 22... Qb7 {[%clk 0:01:13.7]} 23. Ne3 {[%clk 0:01:31]} 23... Ne5
{[%clk 0:00:55.5]} 24. Be6+ {[%clk 0:01:26.8]} 24... Nxe6 {[%clk 0:00:54.6]} 25.
dxe6 {[%clk 0:01:27.7]} 25... Qxe4 {[%clk 0:00:54.3]} 26. f3 {[%clk 0:01:21]}
26... Qd4 {[%clk 0:00:45.1]} 27. Qxd4 {[%clk 0:01:17.3]} 27... cxd4 {[%clk
0:00:46]} 28. Nf5 {[%clk 0:01:18.1]} 28... Rb7 {[%clk 0:00:25.9]} 29. Nxd4
{[%clk 0:01:12.9]} 29... Nc4 {[%clk 0:00:24.9]} 30. b3 {[%clk 0:00:59.1]} 30...
Ne5 {[%clk 0:00:22.3]} 31. Nf5 {[%clk 0:00:54.8]} 31... Kf8 {[%clk 0:00:21.8]}
32. Ra5 {[%clk 0:00:46.6]} 32... Rc8 {[%clk 0:00:21.8]} 33. Rea1 {[%clk
0:00:44.9]} 33... Nc6 {[%clk 0:00:22.4]} 34. Ra8 {[%clk 0:00:41.9]} 34... Rbb8
{[%clk 0:00:22.9]} 35. Rxb8 {[%clk 0:00:41.7]} 35... Rxb8 {[%clk 0:00:23.8]} 36.
c3 {[%clk 0:00:35.4]} 36... Nd8 {[%clk 0:00:15.6]} 37. Ra7 {[%clk 0:00:30.6]}
37... Nxe6 {[%clk 0:00:15.8]} 38. Rxe7 {[%clk 0:00:30.4]} 38... Nd8 {[%clk
0:00:10.3]} 39. Rxg7 {[%clk 0:00:29.1]} 39... Nf7 {[%clk 0:00:10.8]} 40. Rh7
{[%clk 0:00:25.5]} 40... Kg8 {[%clk 0:00:11.2]} 41. Rg7+ {[%clk 0:00:23.9]}
41... Kf8 {[%clk 0:00:11.4]} 42. Rg6 {[%clk 0:00:24.7]} 42... Rc8 {[%clk
0:00:09.4]} 43. Nxd6 {[%clk 0:00:19.1]} 43... Rxc3 {[%clk 0:00:08.8]} 44. Rxf6
{[%clk 0:00:19.7]} 44... Ke7 {[%clk 0:00:09.2]} 45. Rxf7+ {[%clk 0:00:19.6]}
45... Ke6 {[%clk 0:00:09]} 46. Rb7 {[%clk 0:00:19.5]} 46... Rc1+ {[%clk
0:00:09.4]} 47. Kh2 {[%clk 0:00:19.2]} 47... Rd1 {[%clk 0:00:08]} 48. Ne4 {[%clk
0:00:19.1]} 48... Kf5 {[%clk 0:00:06.2]} 49. Rxb5+ {[%clk 0:00:17.6]} 49... Ke6
{[%clk 0:00:06.8]} 50. Rb6+ {[%clk 0:00:18.1]} 50... Kf7 {[%clk 0:00:07]} 51.
Rxh6 {[%clk 0:00:18.3]} 51... Rb1 {[%clk 0:00:07.3]} 52. Nxg5+ {[%clk 0:00:18]}
52... Kg7 {[%clk 0:00:07.9]} 53. Rg6+ {[%clk 0:00:18.5]} 53... Kf8 {[%clk
0:00:07.5]} 54. Bd6+ {[%clk 0:00:18.3]} 54... Ke8 {[%clk 0:00:07]} 55. h6 {[%clk
0:00:19]} 55... Rxb3 {[%clk 0:00:06.6]} 56. h7 {[%clk 0:00:19.3]} 56... Kd7
{[%clk 0:00:07.5]} 57. h8=Q {[%clk 0:00:19.3]} 57... Kc6 {[%clk 0:00:07.4]} 58.
Bf8+ {[%clk 0:00:18.9]} 58... Kb5 {[%clk 0:00:07.6]} 59. Qe5+ {[%clk 0:00:19]}
59... Kc4 {[%clk 0:00:07.2]} 60. Rc6+ {[%clk 0:00:19]} 60... Kd3 {[%clk
0:00:07.9]} 61. Qe4+ {[%clk 0:00:19.2]} 61... Kd2 {[%clk 0:00:07.7]} 62. Rc2+
{[%clk 0:00:19.9]} 62... Kd1 {[%clk 0:00:07.2]} 63. Qe2# {[%clk 0:00:20.7]} 1-0

[Event "Early-Titled-Tuesday-Blitz-January-23-2024"]
[Site "Chess.com"]
[Date "2024.01.23"]
[Round "1"]
[White "TitarovVasiliYouTube"]
[Black "Alenzer"]
[Result "1-0"]
[WhiteElo "2565"]
[BlackElo "2157"]
[TimeControl "180+1"]
[EndTime "8:08:09 PST"]
[Termination "TitarovVasiliYouTube won on time"]

1. e4 {[%clk 0:03:00.9]} 1... c5 {[%clk 0:02:47.6]} 2. Nf3 {[%clk 0:02:59.6]}
2... e6 {[%clk 0:02:47.1]} 3. Be2 {[%clk 0:02:56.8]} 3... Nc6 {[%clk 0:02:40.4]}
4. O-O {[%clk 0:02:56.7]} 4... Nf6 {[%clk 0:02:37.8]} 5. d3 {[%clk 0:02:56.8]}
5... d5 {[%clk 0:02:37.1]} 6. exd5 {[%clk 0:02:55.9]} 6... exd5 {[%clk
0:02:36.4]} 7. d4 {[%clk 0:02:51.8]} 7... Be7 {[%clk 0:02:22.2]} 8. dxc5 {[%clk
0:02:50.3]} 8... Bxc5 {[%clk 0:02:20.6]} 9. Nbd2 {[%clk 0:02:49.1]} 9... O-O
{[%clk 0:02:19.8]} 10. Nb3 {[%clk 0:02:49.3]} 10... Bd6 {[%clk 0:02:19.3]} 11.
c3 {[%clk 0:02:46.5]} 11... Bg4 {[%clk 0:02:14.5]} 12. h3 {[%clk 0:02:36.8]}
12... Bh5 {[%clk 0:02:12]} 13. Nfd4 {[%clk 0:02:31.8]} 13... Bxe2 {[%clk
0:02:06.7]} 14. Qxe2 {[%clk 0:02:29.6]} 14... Re8 {[%clk 0:02:05.9]} 15. Qf3
{[%clk 0:02:27.8]} 15... Ne5 {[%clk 0:01:59.3]} 16. Qd1 {[%clk 0:02:26.7]} 16...
Ne4 {[%clk 0:01:53.7]} 17. Nf3 {[%clk 0:02:04.1]} 17... Ng6 {[%clk 0:01:30.7]}
18. Qd4 {[%clk 0:01:42.6]} 18... Nh4 {[%clk 0:00:38]} 19. Nxh4 {[%clk
0:00:42.8]} 19... Qxh4 {[%clk 0:00:36.9]} 20. Be3 {[%clk 0:00:42]} 20... Rad8
{[%clk 0:00:19]} 21. Qd1 {[%clk 0:00:33.1]} 21... Ng3 {[%clk 0:00:13.6]} 22. Re1
{[%clk 0:00:32]} 22... Nf5 {[%clk 0:00:12.4]} 23. Qf3 {[%clk 0:00:19.4]} 23...
Nxe3 {[%clk 0:00:11.1]} 24. Rxe3 {[%clk 0:00:20.3]} 24... Rxe3 {[%clk
0:00:10.3]} 25. Qxe3 {[%clk 0:00:21.2]} 25... Qf4 {[%clk 0:00:08.8]} 26. Qxf4
{[%clk 0:00:20.8]} 26... Bxf4 {[%clk 0:00:09.5]} 27. Rd1 {[%clk 0:00:20.8]}
27... f6 {[%clk 0:00:06.9]} 28. c4 {[%clk 0:00:11.8]} 28... Be5 {[%clk
0:00:06.4]} 29. cxd5 {[%clk 0:00:04.8]} 29... Bxb2 {[%clk 0:00:06.2]} 30. Nc5
{[%clk 0:00:05.1]} 30... b6 {[%clk 0:00:06.1]} 31. Ne4 {[%clk 0:00:02.8]} 31...
Be5 {[%clk 0:00:05.2]} 32. g3 {[%clk 0:00:02.6]} 32... Kf7 {[%clk 0:00:05.6]}
33. f4 {[%clk 0:00:03.2]} 33... Bb8 {[%clk 0:00:05]} 34. Kf2 {[%clk 0:00:03.9]}
34... a6 {[%clk 0:00:04.6]} 35. Ke3 {[%clk 0:00:04.4]} 35... Ke7 {[%clk
0:00:04.4]} 36. g4 {[%clk 0:00:03.7]} 36... Bd6 {[%clk 0:00:04.8]} 37. Rc1
{[%clk 0:00:03.7]} 37... Rd7 {[%clk 0:00:04.6]} 38. Rc6 {[%clk 0:00:04.2]} 38...
g6 {[%clk 0:00:04.4]} 39. f5 {[%clk 0:00:04.1]} 39... gxf5 {[%clk 0:00:04.2]}
40. gxf5 {[%clk 0:00:05]} 40... Bc7 {[%clk 0:00:02.9]} 41. Re6+ {[%clk
0:00:05.9]} 41... Kf7 {[%clk 0:00:02.8]} 42. Rxf6+ {[%clk 0:00:06.3]} 42... Ke7
{[%clk 0:00:02.8]} 43. Re6+ {[%clk 0:00:06.8]} 43... Kf7 {[%clk 0:00:03.1]} 44.
d6 {[%clk 0:00:07.5]} 44... Bd8 {[%clk 0:00:03]} 45. Kd4 {[%clk 0:00:07.6]}
45... b5 {[%clk 0:00:03.2]} 46. Kd5 {[%clk 0:00:07.4]} 46... h5 {[%clk
0:00:03.7]} 47. Nc5 {[%clk 0:00:06.5]} 47... Ra7 {[%clk 0:00:03.3]} 48. Rh6
{[%clk 0:00:07]} 48... Ke8 {[%clk 0:00:02.1]} 49. Rh8+ {[%clk 0:00:07]} 49...
Kf7 {[%clk 0:00:01.3]} 50. Rh7+ {[%clk 0:00:07.9]} 50... Ke8 {[%clk 0:00:01]}
51. Rxa7 {[%clk 0:00:08.8]} 1-0